[Event "Titled Tuesday Blitz March 28 Early 2023"]
[White "Zubritskiy, Artyom"]
[Black "Nurmanova, Alua"]
[WhiteFideId "4181247"]
[BlackFideId "13729390"]
[WhiteElo "2419"]
[BlackElo "2253"]
[Result "0-1"]
[Round "04"]
[TimeControl "180+2"]
[Date "2023.03.28"]
[WhiteClock "0:00:01"]
[BlackClock "0:00:13"]

1. d4 {[%clk 0:03:00]}  Nf6 {[%clk 0:02:59]} 2. c4 {[%clk 0:03:00]}  g6 {[%clk 0:03:00]} 3. g3 {[%clk 0:03:01]}  Bg7 {[%clk 0:03:00]} 4. Bg2 {[%clk 0:03:01]}  O-O {[%clk 0:03:00]} 5. Nc3 {[%clk 0:03:01]}  d6 {[%clk 0:03:00]} 6. Nf3 {[%clk 0:03:02]}  Nbd7 {[%clk 0:02:59]} 7. O-O {[%clk 0:03:02]}  e5 {[%clk 0:03:00]} 8. e4 {[%clk 0:03:02]}  exd4 {[%clk 0:02:59]} 9. Nxd4 {[%clk 0:03:03]}  Re8 {[%clk 0:03:00]} 10. Re1 {[%clk 0:03:03]}  Nc5 {[%clk 0:03:00]} 11. h3 {[%clk 0:02:59]}  h6 {[%clk 0:02:58]} 12. f3 {[%clk 0:01:55]}  c6 {[%clk 0:02:52]} 13. Be3 {[%clk 0:01:54]}  Qc7 {[%clk 0:02:47]} 14. Bf2 {[%clk 0:01:46]}  a5 {[%clk 0:02:41]} 15. Qc2 {[%clk 0:01:44]}  Nh5 {[%clk 0:02:38]} 16. Rad1 {[%clk 0:01:38]}  a4 {[%clk 0:02:37]} 17. f4 {[%clk 0:01:35]}  Ne6 {[%clk 0:02:18]} 18. Nde2 {[%clk 0:01:25]}  f5 {[%clk 0:02:04]} 19. exf5 {[%clk 0:01:14]}  gxf5 {[%clk 0:02:05]} 20. Nd4 {[%clk 0:01:02]}  Bxd4 {[%clk 0:02:03]} 21. Bxd4 {[%clk 0:01:00]}  Nxg3 {[%clk 0:02:03]} 22. Re3 {[%clk 0:00:43]}  Nh5 {[%clk 0:01:45]} 23. Qxf5 {[%clk 0:00:42]}  Nhg7 {[%clk 0:01:35]} 24. Qg6 {[%clk 0:00:42]}  Qf7 {[%clk 0:01:34]} 25. Qxf7+ {[%clk 0:00:32]}  Kxf7 {[%clk 0:01:35]} 26. Bxg7 {[%clk 0:00:22]}  Nxg7 {[%clk 0:01:36]} 27. Red3 {[%clk 0:00:18]}  Nf5 {[%clk 0:01:32]} 28. Ne4 {[%clk 0:00:18]}  Rg8 {[%clk 0:01:28]} 29. Kf2 {[%clk 0:00:16]}  Be6 {[%clk 0:01:22]} 30. Nxd6+ {[%clk 0:00:17]}  Nxd6 {[%clk 0:01:23]} 31. Rxd6 {[%clk 0:00:17]}  Raf8 {[%clk 0:01:20]} 32. Bf1 {[%clk 0:00:13]}  Ke7 {[%clk 0:01:20]} 33. c5 {[%clk 0:00:12]}  Rxf4+ {[%clk 0:01:19]} 34. Ke3 {[%clk 0:00:13]}  Rh4 {[%clk 0:01:16]} 35. Kf2 {[%clk 0:00:08]}  Rf4+ {[%clk 0:01:15]} 36. Ke3 {[%clk 0:00:08]}  Rb4 {[%clk 0:01:15]} 37. Re1 {[%clk 0:00:07]}  Rg3+ {[%clk 0:00:40]} 38. Kf2 {[%clk 0:00:07]}  Rg6 {[%clk 0:00:41]} 39. b3 {[%clk 0:00:04]}  axb3 {[%clk 0:00:39]} 40. axb3 {[%clk 0:00:05]}  Rf6+ {[%clk 0:00:29]} 41. Kg1 {[%clk 0:00:04]}  b5 {[%clk 0:00:27]} 42. Rxc6 {[%clk 0:00:03]}  Rxb3 {[%clk 0:00:25]} 43. Bg2 {[%clk 0:00:03]}  Rg6 {[%clk 0:00:23]} 44. Kh1 {[%clk 0:00:02]}  Rbg3 {[%clk 0:00:20]} 45. Rcxe6+ {[%clk 0:00:01]}  Rxe6 {[%clk 0:00:20]} 46. Rb1 {[%clk 0:00:02]}  Re2 {[%clk 0:00:19]} 47. Bf1 {[%clk 0:00:02]}  Rc2 {[%clk 0:00:18]} 48. Bxb5 {[%clk 0:00:02]}  Rxh3+ {[%clk 0:00:17]} 49. Kg1 {[%clk 0:00:02]}  Rg3+ {[%clk 0:00:17]} 50. Kh1 {[%clk 0:00:01]}  Rxc5 {[%clk 0:00:18]} 51. Be2 {[%clk 0:00:01]}  Rc2 {[%clk 0:00:14]} 52. Bf1 {[%clk 0:00:01]}  Rc5 {[%clk 0:00:13]} 53. Be2 {[%clk 0:00:01]}  Kd6 {[%clk 0:00:13]} 0-1


[Site "https://www.chess.com"]

[Event "Titled Tuesday Blitz March 28 Early 2023"]
[White "Belov, Alexei"]
[Black "Weetik, Vjacheslav"]
[WhiteFideId "4128206"]
[BlackFideId "4153472"]
[WhiteElo "2539"]
[BlackElo "2469"]
[Result "1-0"]
[Round "04"]
[TimeControl "180+2"]
[Date "2023.03.28"]
[WhiteClock "0:00:21"]
[BlackClock "0:00:01"]

1. e4 {[%clk 0:03:00]}  c5 {[%clk 0:02:59]} 2. Nf3 {[%clk 0:03:00]}  Nc6 {[%clk 0:03:00]} 3. d4 {[%clk 0:03:00]}  cxd4 {[%clk 0:03:01]} 4. Nxd4 {[%clk 0:03:01]}  g6 {[%clk 0:03:01]} 5. c4 {[%clk 0:03:00]}  Nf6 {[%clk 0:03:02]} 6. Nc3 {[%clk 0:03:00]}  d6 {[%clk 0:03:02]} 7. Be2 {[%clk 0:02:59]}  Nxd4 {[%clk 0:03:02]} 8. Qxd4 {[%clk 0:02:58]}  Bg7 {[%clk 0:03:03]} 9. Be3 {[%clk 0:02:58]}  O-O {[%clk 0:03:03]} 10. Qd2 {[%clk 0:02:59]}  a5 {[%clk 0:03:03]} 11. O-O {[%clk 0:02:58]}  a4 {[%clk 0:03:03]} 12. f3 {[%clk 0:02:55]}  Qa5 {[%clk 0:03:02]} 13. Rfd1 {[%clk 0:02:53]}  Be6 {[%clk 0:03:00]} 14. Nd5 {[%clk 0:02:49]}  Nxd5 {[%clk 0:02:47]} 15. cxd5 {[%clk 0:02:45]}  Bd7 {[%clk 0:02:34]} 16. Rac1 {[%clk 0:02:35]}  Rfc8 {[%clk 0:01:28]} 17. Qxa5 {[%clk 0:02:29]}  Rxa5 {[%clk 0:01:27]} 18. Rxc8+ {[%clk 0:02:28]}  Bxc8 {[%clk 0:01:28]} 19. Rc1 {[%clk 0:02:26]}  Ra8 {[%clk 0:01:26]} 20. Rc7 {[%clk 0:01:59]}  Bxb2 {[%clk 0:01:02]} 21. Rxe7 {[%clk 0:01:58]}  Kf8 {[%clk 0:01:02]} 22. Rc7 {[%clk 0:01:55]}  a3 {[%clk 0:00:42]} 23. Bb5 {[%clk 0:01:50]}  Bf6 {[%clk 0:00:24]} 24. h3 {[%clk 0:01:28]}  Bd8 {[%clk 0:00:20]} 25. Rc3 {[%clk 0:01:25]}  f5 {[%clk 0:00:19]} 26. Bd4 {[%clk 0:01:17]}  fxe4 {[%clk 0:00:15]} 27. fxe4 {[%clk 0:01:16]}  Bg5 {[%clk 0:00:15]} 28. Kf2 {[%clk 0:01:11]}  h5 {[%clk 0:00:10]} 29. Ke2 {[%clk 0:01:09]}  Be7 {[%clk 0:00:08]} 30. Kf3 {[%clk 0:01:04]}  Bg5 {[%clk 0:00:05]} 31. g4 {[%clk 0:01:03]}  h4 {[%clk 0:00:05]} 32. e5 {[%clk 0:00:58]}  dxe5 {[%clk 0:00:04]} 33. Bxe5 {[%clk 0:00:57]}  Bd8 {[%clk 0:00:03]} 34. Ke4 {[%clk 0:00:53]}  Bb6 {[%clk 0:00:02]} 35. Bd4 {[%clk 0:00:45]}  Bd8 {[%clk 0:00:02]} 36. Bc5+ {[%clk 0:00:44]}  Kf7 {[%clk 0:00:02]} 37. Rf3+ {[%clk 0:00:43]}  Kg8 {[%clk 0:00:02]} 38. Ke5 {[%clk 0:00:42]}  Bg5 {[%clk 0:00:02]} 39. Rf8+ {[%clk 0:00:27]}  Kg7 {[%clk 0:00:03]} 40. Bd7 {[%clk 0:00:23]}  Bxd7 {[%clk 0:00:01]} 41. Rxa8 {[%clk 0:00:23]}  Bf6+ {[%clk 0:00:01]} 42. Ke4 {[%clk 0:00:21]} 1-0


[Site "https://www.chess.com"]

[Event "Titled Tuesday Blitz March 28 Early 2023"]
[White "Dixit, Nikhil"]
[Black "Skvortsov, Andrei"]
[WhiteFideId "5059534"]
[BlackFideId "24108600"]
[WhiteElo "2207"]
[BlackElo "2259"]
[Result "1-0"]
[Round "04"]
[TimeControl "180+2"]
[Date "2023.03.28"]
[WhiteClock "0:00:58"]
[BlackClock "0:01:02"]

1. e4 {[%clk 0:03:00]}  d5 {[%clk 0:02:56]} 2. exd5 {[%clk 0:03:00]}  Qxd5 {[%clk 0:02:56]} 3. Nc3 {[%clk 0:02:59]}  Qe5+ {[%clk 0:02:57]} 4. Qe2 {[%clk 0:02:59]}  Qxe2+ {[%clk 0:02:51]} 5. Bxe2 {[%clk 0:02:59]}  c6 {[%clk 0:02:52]} 6. b3 {[%clk 0:02:53]}  Bf5 {[%clk 0:02:50]} 7. d3 {[%clk 0:02:51]}  e5 {[%clk 0:02:43]} 8. Bb2 {[%clk 0:02:51]}  Na6 {[%clk 0:02:41]} 9. O-O-O {[%clk 0:02:50]}  O-O-O {[%clk 0:02:39]} 10. Nf3 {[%clk 0:02:50]}  f6 {[%clk 0:02:39]} 11. d4 {[%clk 0:02:43]}  exd4 {[%clk 0:02:36]} 12. Nxd4 {[%clk 0:02:39]}  Bd7 {[%clk 0:02:35]} 13. Bxa6 {[%clk 0:02:31]}  bxa6 {[%clk 0:02:36]} 14. Rhe1 {[%clk 0:02:25]}  Bd6 {[%clk 0:02:27]} 15. Ne6 {[%clk 0:02:14]}  Bxe6 {[%clk 0:02:25]} 16. Rxe6 {[%clk 0:02:14]}  Bf4+ {[%clk 0:02:24]} 17. Kb1 {[%clk 0:02:14]}  Rxd1+ {[%clk 0:02:24]} 18. Nxd1 {[%clk 0:02:14]}  Kd7 {[%clk 0:02:25]} 19. Re4 {[%clk 0:02:12]}  Bc7 {[%clk 0:02:23]} 20. Ra4 {[%clk 0:02:12]}  a5 {[%clk 0:02:23]} 21. Bc3 {[%clk 0:02:11]}  Nh6 {[%clk 0:02:23]} 22. Bxa5 {[%clk 0:02:10]}  Bb8 {[%clk 0:02:02]} 23. Ne3 {[%clk 0:02:06]}  Bxh2 {[%clk 0:01:47]} 24. Rd4+ {[%clk 0:01:32]}  Kc8 {[%clk 0:01:46]} 25. g3 {[%clk 0:01:24]}  Re8 {[%clk 0:01:46]} 26. Nc4 {[%clk 0:01:17]}  Re2 {[%clk 0:01:26]} 27. Nd6+ {[%clk 0:01:06]}  Kb8 {[%clk 0:01:25]} 28. Rb4+ {[%clk 0:01:02]}  Ka8 {[%clk 0:01:24]} 29. Bc7 {[%clk 0:00:57]}  a5 {[%clk 0:01:01]} 30. Rb8+ {[%clk 0:00:56]}  Ka7 {[%clk 0:01:02]} 31. Nc8+ {[%clk 0:00:57]}  Ka6 {[%clk 0:01:02]} 32. Rb6# {[%clk 0:00:58]} 1-0


[Site "https://www.chess.com"]

[Event "Titled Tuesday Blitz March 28 Early 2023"]
[White "Cherniaiev, Tykhon"]
[Black "Novikov, Evgenij"]
[WhiteFideId "14182360"]
[BlackFideId "4125380"]
[WhiteElo "2450"]
[BlackElo "2242"]
[Result "1-0"]
[Round "04"]
[TimeControl "180+2"]
[Date "2023.03.28"]
[WhiteClock "0:00:10"]
[BlackClock "0:00:04"]

1. Nf3 {[%clk 0:03:00]}  d5 {[%clk 0:02:58]} 2. d4 {[%clk 0:03:01]}  Nf6 {[%clk 0:02:58]} 3. c4 {[%clk 0:03:01]}  c6 {[%clk 0:02:58]} 4. e3 {[%clk 0:03:00]}  a6 {[%clk 0:02:57]} 5. Nbd2 {[%clk 0:03:00]}  b5 {[%clk 0:02:57]} 6. b3 {[%clk 0:02:52]}  Bg4 {[%clk 0:02:52]} 7. Be2 {[%clk 0:02:52]}  e6 {[%clk 0:02:48]} 8. O-O {[%clk 0:02:52]}  Bd6 {[%clk 0:02:42]} 9. h3 {[%clk 0:02:51]}  Bh5 {[%clk 0:02:36]} 10. Bb2 {[%clk 0:02:50]}  O-O {[%clk 0:02:28]} 11. a4 {[%clk 0:02:50]}  bxc4 {[%clk 0:02:19]} 12. bxc4 {[%clk 0:02:50]}  a5 {[%clk 0:02:18]} 13. c5 {[%clk 0:02:47]}  Bc7 {[%clk 0:02:18]} 14. Bc3 {[%clk 0:02:44]}  Na6 {[%clk 0:02:08]} 15. Rb1 {[%clk 0:02:41]}  Bg6 {[%clk 0:02:02]} 16. Rb2 {[%clk 0:02:38]}  Ne4 {[%clk 0:01:47]} 17. Nxe4 {[%clk 0:02:29]}  Bxe4 {[%clk 0:01:47]} 18. Bd3 {[%clk 0:02:11]}  f5 {[%clk 0:01:22]} 19. Qe2 {[%clk 0:01:41]}  Nb4 {[%clk 0:00:59]} 20. Bxb4 {[%clk 0:01:22]}  axb4 {[%clk 0:01:00]} 21. Rxb4 {[%clk 0:01:22]}  Ra7 {[%clk 0:01:01]} 22. Rfb1 {[%clk 0:00:53]}  Qa8 {[%clk 0:00:59]} 23. Ng5 {[%clk 0:00:50]}  Bxd3 {[%clk 0:00:43]} 24. Qxd3 {[%clk 0:00:50]}  Re8 {[%clk 0:00:41]} 25. Qb3 {[%clk 0:00:46]}  h6 {[%clk 0:00:34]} 26. Nf3 {[%clk 0:00:45]}  Kh7 {[%clk 0:00:23]} 27. g3 {[%clk 0:00:36]}  Qc8 {[%clk 0:00:21]} 28. Rb7 {[%clk 0:00:34]}  Ra5 {[%clk 0:00:15]} 29. Qb4 {[%clk 0:00:29]}  Ra8 {[%clk 0:00:14]} 30. Ne5 {[%clk 0:00:20]}  Bxe5 {[%clk 0:00:14]} 31. dxe5 {[%clk 0:00:20]}  Qd8 {[%clk 0:00:10]} 32. Qb6 {[%clk 0:00:12]}  Rxa4 {[%clk 0:00:08]} 33. Qxc6 {[%clk 0:00:11]}  Re4 {[%clk 0:00:07]} 34. Rd7 {[%clk 0:00:04]}  Qc8 {[%clk 0:00:06]} 35. Qxc8 {[%clk 0:00:03]}  Rxc8 {[%clk 0:00:07]} 36. Rbb7 {[%clk 0:00:03]}  Rxc5 {[%clk 0:00:06]} 37. Rxg7+ {[%clk 0:00:04]}  Kh8 {[%clk 0:00:07]} 38. Rge7 {[%clk 0:00:05]}  Rc8 {[%clk 0:00:05]} 39. Rxe6 {[%clk 0:00:05]}  d4 {[%clk 0:00:04]} 40. exd4 {[%clk 0:00:04]}  Rxd4 {[%clk 0:00:05]} 41. Rxh6+ {[%clk 0:00:05]}  Kg8 {[%clk 0:00:06]} 42. Rg6+ {[%clk 0:00:06]}  Kh8 {[%clk 0:00:06]} 43. Rh6+ {[%clk 0:00:06]}  Kg8 {[%clk 0:00:06]} 44. Rf6 {[%clk 0:00:07]}  Rf8 {[%clk 0:00:04]} 45. Rxf8+ {[%clk 0:00:06]}  Kxf8 {[%clk 0:00:05]} 46. e6 {[%clk 0:00:07]}  Re4 {[%clk 0:00:04]} 47. Rf7+ {[%clk 0:00:08]}  Ke8 {[%clk 0:00:04]} 48. Rxf5 {[%clk 0:00:09]}  Rxe6 {[%clk 0:00:04]} 49. Rf3 {[%clk 0:00:10]} 1-0


[Site "https://www.chess.com"]

[Event "Titled Tuesday Blitz March 28 Early 2023"]
[White "Shubenkova, Veronika"]
[Black "Bashirli, Nail"]
[WhiteFideId "44124040"]
[BlackFideId "13406809"]
[WhiteElo "2027"]
[BlackElo "2338"]
[Result "1-0"]
[Round "04"]
[TimeControl "180+2"]
[Date "2023.03.28"]
[WhiteClock "0:00:15"]
[BlackClock "0:00:03"]

1. e4 {[%clk 0:03:00]}  Nf6 {[%clk 0:03:00]} 2. e5 {[%clk 0:03:00]}  Nd5 {[%clk 0:02:49]} 3. c4 {[%clk 0:03:00]}  Nb6 {[%clk 0:02:48]} 4. d4 {[%clk 0:03:01]}  d6 {[%clk 0:02:48]} 5. exd6 {[%clk 0:03:01]}  cxd6 {[%clk 0:02:44]} 6. Nf3 {[%clk 0:03:02]}  g6 {[%clk 0:02:44]} 7. Nc3 {[%clk 0:03:02]}  Bg7 {[%clk 0:02:45]} 8. h3 {[%clk 0:03:01]}  O-O {[%clk 0:02:44]} 9. Be2 {[%clk 0:03:01]}  Bf5 {[%clk 0:02:34]} 10. O-O {[%clk 0:03:00]}  Nc6 {[%clk 0:02:32]} 11. a3 {[%clk 0:03:00]}  Rc8 {[%clk 0:02:25]} 12. b3 {[%clk 0:02:56]}  d5 {[%clk 0:02:13]} 13. c5 {[%clk 0:02:56]}  Nd7 {[%clk 0:02:13]} 14. b4 {[%clk 0:02:56]}  e6 {[%clk 0:02:06]} 15. Bb2 {[%clk 0:02:52]}  b6 {[%clk 0:02:05]} 16. b5 {[%clk 0:02:51]}  Na5 {[%clk 0:02:01]} 17. c6 {[%clk 0:02:51]}  Nf6 {[%clk 0:02:01]} 18. a4 {[%clk 0:02:51]}  Ne4 {[%clk 0:01:59]} 19. Nxe4 {[%clk 0:02:49]}  Bxe4 {[%clk 0:01:53]} 20. Nd2 {[%clk 0:02:49]}  g5 {[%clk 0:01:51]} 21. Nxe4 {[%clk 0:02:49]}  dxe4 {[%clk 0:01:45]} 22. Qc2 {[%clk 0:02:42]}  f5 {[%clk 0:01:44]} 23. Rad1 {[%clk 0:02:41]}  Qd5 {[%clk 0:01:41]} 24. Bc3 {[%clk 0:02:30]}  Nc4 {[%clk 0:01:35]} 25. Bb4 {[%clk 0:02:28]}  Nd6 {[%clk 0:01:35]} 26. Qd2 {[%clk 0:02:13]}  f4 {[%clk 0:01:33]} 27. Bg4 {[%clk 0:02:10]}  Rfd8 {[%clk 0:01:11]} 28. h4 {[%clk 0:02:00]}  h6 {[%clk 0:01:06]} 29. hxg5 {[%clk 0:01:59]}  hxg5 {[%clk 0:01:07]} 30. Qb2 {[%clk 0:01:31]}  Nf5 {[%clk 0:00:55]} 31. Bc3 {[%clk 0:01:22]}  f3 {[%clk 0:00:50]} 32. Rfe1 {[%clk 0:01:10]}  Nh6 {[%clk 0:00:48]} 33. gxf3 {[%clk 0:01:08]}  Nxg4 {[%clk 0:00:47]} 34. fxg4 {[%clk 0:01:06]}  e5 {[%clk 0:00:42]} 35. dxe5 {[%clk 0:01:03]}  Qe6 {[%clk 0:00:42]} 36. Qe2 {[%clk 0:01:02]}  Rd3 {[%clk 0:00:38]} 37. Rxd3 {[%clk 0:01:00]}  exd3 {[%clk 0:00:39]} 38. Qxd3 {[%clk 0:01:00]}  Qxg4+ {[%clk 0:00:38]} 39. Kf1 {[%clk 0:01:00]}  Rf8 {[%clk 0:00:28]} 40. Qd5+ {[%clk 0:00:58]}  Kh8 {[%clk 0:00:25]} 41. Re3 {[%clk 0:00:50]}  Qh4 {[%clk 0:00:17]} 42. Be1 {[%clk 0:00:41]}  g4 {[%clk 0:00:14]} 43. Qe4 {[%clk 0:00:38]}  Bh6 {[%clk 0:00:11]} 44. Rd3 {[%clk 0:00:34]}  Rf4 {[%clk 0:00:11]} 45. Qd5 {[%clk 0:00:28]}  Rf8 {[%clk 0:00:06]} 46. e6 {[%clk 0:00:27]}  g3 {[%clk 0:00:06]} 47. Qd4+ {[%clk 0:00:19]}  Qxd4 {[%clk 0:00:06]} 48. Rxd4 {[%clk 0:00:19]}  gxf2 {[%clk 0:00:06]} 49. Bxf2 {[%clk 0:00:15]}  Be3 {[%clk 0:00:05]} 50. Rh4+ {[%clk 0:00:15]}  Kg7 {[%clk 0:00:05]} 51. Rg4+ {[%clk 0:00:15]}  Kh6 {[%clk 0:00:04]} 52. Rg2 {[%clk 0:00:15]}  Rf6 {[%clk 0:00:04]} 53. e7 {[%clk 0:00:15]}  Re6 {[%clk 0:00:01]} 54. Bxe3+ {[%clk 0:00:14]}  Rxe3 {[%clk 0:00:01]} 55. Re2 {[%clk 0:00:15]}  Rf3+ {[%clk 0:00:01]} 56. Ke1 {[%clk 0:00:15]}  Rc3 {[%clk 0:00:02]} 57. e8=Q {[%clk 0:00:15]}  Rc1+ {[%clk 0:00:03]} 58. Kd2 {[%clk 0:00:15]}  Rc5 {[%clk 0:00:04]} 59. Rh2+ {[%clk 0:00:15]}  Kg5 {[%clk 0:00:03]} 60. Qe7+ {[%clk 0:00:15]} 1-0


[Site "https://www.chess.com"]

[Event "Titled Tuesday Blitz March 28 Early 2023"]
[White "HSH1987"]
[Black "Shivakumar, Shawnak"]
[BlackFideId "30940192"]
[WhiteElo "2708"]
[BlackElo "2089"]
[Result "1-0"]
[Round "04"]
[TimeControl "180+2"]
[Date "2023.03.28"]
[WhiteClock "0:00:37"]
[BlackClock "0:00:20"]

1. Nf3 {[%clk 0:03:00]}  d5 {[%clk 0:02:57]} 2. g3 {[%clk 0:03:00]}  Bg4 {[%clk 0:02:57]} 3. Bg2 {[%clk 0:03:00]}  Nd7 {[%clk 0:02:55]} 4. O-O {[%clk 0:02:59]}  e5 {[%clk 0:02:54]} 5. d3 {[%clk 0:02:59]}  Ngf6 {[%clk 0:02:54]} 6. Nbd2 {[%clk 0:02:59]}  Bd6 {[%clk 0:02:54]} 7. e4 {[%clk 0:02:59]}  d4 {[%clk 0:02:54]} 8. h3 {[%clk 0:02:58]}  Bh5 {[%clk 0:02:48]} 9. Qe1 {[%clk 0:02:56]}  c6 {[%clk 0:02:42]} 10. Nh4 {[%clk 0:02:54]}  Bg6 {[%clk 0:02:36]} 11. Nf5 {[%clk 0:02:52]}  Bxf5 {[%clk 0:02:32]} 12. exf5 {[%clk 0:02:53]}  O-O {[%clk 0:02:32]} 13. g4 {[%clk 0:02:53]}  Nd5 {[%clk 0:02:31]} 14. Ne4 {[%clk 0:02:52]}  Bc7 {[%clk 0:02:30]} 15. a3 {[%clk 0:02:49]}  Re8 {[%clk 0:02:25]} 16. Qe2 {[%clk 0:02:40]}  Nf4 {[%clk 0:02:14]} 17. Qf3 {[%clk 0:02:34]}  Qh4 {[%clk 0:02:08]} 18. Bd2 {[%clk 0:02:32]}  Nf6 {[%clk 0:02:02]} 19. Rfe1 {[%clk 0:02:30]}  N6d5 {[%clk 0:01:55]} 20. Qg3 {[%clk 0:02:17]}  Qxg3 {[%clk 0:01:37]} 21. fxg3 {[%clk 0:02:16]}  Nxg2 {[%clk 0:01:37]} 22. Kxg2 {[%clk 0:02:16]}  Rac8 {[%clk 0:01:31]} 23. Re2 {[%clk 0:02:14]}  Bb8 {[%clk 0:01:26]} 24. Rae1 {[%clk 0:02:13]}  c5 {[%clk 0:01:27]} 25. b3 {[%clk 0:02:13]}  b5 {[%clk 0:01:27]} 26. g5 {[%clk 0:01:57]}  c4 {[%clk 0:01:25]} 27. h4 {[%clk 0:01:48]}  cxb3 {[%clk 0:01:15]} 28. cxb3 {[%clk 0:01:46]}  Nc3 {[%clk 0:01:16]} 29. Bxc3 {[%clk 0:01:39]}  dxc3 {[%clk 0:01:15]} 30. Rc2 {[%clk 0:01:39]}  Red8 {[%clk 0:01:14]} 31. Rec1 {[%clk 0:01:29]}  Rxd3 {[%clk 0:01:13]} 32. Rxc3 {[%clk 0:01:29]}  Rcxc3 {[%clk 0:01:11]} 33. Rxc3 {[%clk 0:01:30]}  Rxc3 {[%clk 0:01:09]} 34. Nxc3 {[%clk 0:01:31]}  a6 {[%clk 0:01:05]} 35. Kf3 {[%clk 0:01:26]}  Ba7 {[%clk 0:00:57]} 36. Nd5 {[%clk 0:01:20]}  Bc5 {[%clk 0:00:53]} 37. a4 {[%clk 0:01:07]}  Kf8 {[%clk 0:00:40]} 38. axb5 {[%clk 0:01:05]}  axb5 {[%clk 0:00:41]} 39. f6 {[%clk 0:01:03]}  gxf6 {[%clk 0:00:38]} 40. Nxf6 {[%clk 0:01:03]}  Kg7 {[%clk 0:00:38]} 41. h5 {[%clk 0:00:56]}  h6 {[%clk 0:00:37]} 42. Nd7 {[%clk 0:00:52]}  Bd4 {[%clk 0:00:33]} 43. gxh6+ {[%clk 0:00:44]}  Kxh6 {[%clk 0:00:31]} 44. Ke4 {[%clk 0:00:36]}  Kxh5 {[%clk 0:00:25]} 45. Nxe5 {[%clk 0:00:36]}  Bxe5 {[%clk 0:00:24]} 46. Kxe5 {[%clk 0:00:37]}  Kg4 {[%clk 0:00:24]} 47. Kf6 {[%clk 0:00:36]}  Kxg3 {[%clk 0:00:25]} 48. Kxf7 {[%clk 0:00:37]}  Kf3 {[%clk 0:00:22]} 49. Ke6 {[%clk 0:00:37]}  Ke3 {[%clk 0:00:23]} 50. Kd5 {[%clk 0:00:37]}  Kd3 {[%clk 0:00:24]} 51. Kc5 {[%clk 0:00:37]}  Kc3 {[%clk 0:00:23]} 52. b4 {[%clk 0:00:37]}  Kb3 {[%clk 0:00:20]} 53. Kxb5 {[%clk 0:00:37]}  Kc3 {[%clk 0:00:20]} 54. Kc5 {[%clk 0:00:37]} 1-0


[Site "https://www.chess.com"]

[Event "Titled Tuesday Blitz March 28 Early 2023"]
[White "Prohaszka, Peter"]
[Black "Castellanos Gomez, Alejandro"]
[WhiteFideId "726265"]
[BlackFideId "22284141"]
[WhiteElo "2626"]
[BlackElo "2158"]
[Result "1-0"]
[Round "04"]
[TimeControl "180+2"]
[Date "2023.03.28"]
[WhiteClock "0:00:11"]
[BlackClock "0:00:04"]

1. d4 {[%clk 0:03:00]}  d5 {[%clk 0:02:59]} 2. Bf4 {[%clk 0:03:00]}  e6 {[%clk 0:02:59]} 3. Nd2 {[%clk 0:03:00]}  Nf6 {[%clk 0:02:59]} 4. c3 {[%clk 0:03:00]}  Bd6 {[%clk 0:02:59]} 5. e3 {[%clk 0:03:00]}  O-O {[%clk 0:02:59]} 6. Ngf3 {[%clk 0:03:00]}  c5 {[%clk 0:03:00]} 7. dxc5 {[%clk 0:03:00]}  Bxc5 {[%clk 0:02:59]} 8. a3 {[%clk 0:02:56]}  Nc6 {[%clk 0:02:59]} 9. b4 {[%clk 0:02:42]}  Bd6 {[%clk 0:02:58]} 10. Bxd6 {[%clk 0:02:43]}  Qxd6 {[%clk 0:02:59]} 11. c4 {[%clk 0:02:43]}  d4 {[%clk 0:02:50]} 12. c5 {[%clk 0:02:35]}  Qd8 {[%clk 0:02:49]} 13. Nc4 {[%clk 0:01:56]}  dxe3 {[%clk 0:02:39]} 14. fxe3 {[%clk 0:01:57]}  Qe7 {[%clk 0:01:54]} 15. Qd6 {[%clk 0:01:56]}  Nd5 {[%clk 0:01:40]} 16. Qxe7 {[%clk 0:01:50]}  Ncxe7 {[%clk 0:01:38]} 17. e4 {[%clk 0:01:34]}  Nf6 {[%clk 0:01:26]} 18. Bd3 {[%clk 0:01:33]}  Rd8 {[%clk 0:01:23]} 19. Ke2 {[%clk 0:01:21]}  Bd7 {[%clk 0:01:23]} 20. Nd6 {[%clk 0:01:05]}  b6 {[%clk 0:01:00]} 21. Rhc1 {[%clk 0:01:05]}  bxc5 {[%clk 0:00:58]} 22. bxc5 {[%clk 0:01:06]}  Bc6 {[%clk 0:00:55]} 23. Rc4 {[%clk 0:00:56]}  Ng6 {[%clk 0:00:51]} 24. g3 {[%clk 0:00:56]}  Nd7 {[%clk 0:00:45]} 25. Rc3 {[%clk 0:00:46]}  Nxc5 {[%clk 0:00:30]} 26. Nxf7 {[%clk 0:00:20]}  Rxd3 {[%clk 0:00:28]} 27. Rxc5 {[%clk 0:00:20]}  Bxe4 {[%clk 0:00:28]} 28. N7g5 {[%clk 0:00:21]}  Bf5 {[%clk 0:00:15]} 29. Rxf5 {[%clk 0:00:21]}  Rad8 {[%clk 0:00:05]} 30. Nxe6 {[%clk 0:00:19]}  R8d6 {[%clk 0:00:04]} 31. Nf4 {[%clk 0:00:17]}  Rc3 {[%clk 0:00:04]} 32. Nxg6 {[%clk 0:00:15]}  Rc2+ {[%clk 0:00:04]} 33. Ke3 {[%clk 0:00:15]}  hxg6 {[%clk 0:00:05]} 34. Re5 {[%clk 0:00:14]}  Rc3+ {[%clk 0:00:05]} 35. Ke2 {[%clk 0:00:12]}  Rc2+ {[%clk 0:00:05]} 36. Kf1 {[%clk 0:00:10]}  Rd3 {[%clk 0:00:06]} 37. Ne1 {[%clk 0:00:09]}  Rxh2 {[%clk 0:00:03]} 38. Nxd3 {[%clk 0:00:09]}  Rh1+ {[%clk 0:00:03]} 39. Ke2 {[%clk 0:00:10]}  Rxa1 {[%clk 0:00:04]} 40. Ra5 {[%clk 0:00:11]} 1-0


[Site "https://www.chess.com"]